fUSD/lending_fUSD_20250120
["ID","MTS","AMOUNT","RATE_DAILY","PERIOD"]
[349696039,1737381039295,-249.48250553,0.00019178,2]
[349696040,1737381039304,-500.0,0.00019178,2]
[349696041,1737381039314,-818.97,0.00019178,2]
[349696042,1737381039323,-500.0,0.00019178,2]
[349696043,1737381039333,-500.0,0.00019178,2]
[349696044,1737381039342,-500.0,0.00019178,2]
[349696045,1737381039352,-155.47409588,0.00019178,2]
[349696046,1737381039384,-344.52590412,0.00019178,2]
[349696047,1737381039393,-80.77333277,0.00019178,2]
[349696048,1737381039405,-419.22666723,0.00019178,2]
[349696049,1737381039415,-160.879053,0.00019178,2]
[349696050,1737381039425,-500.0,0.00019178,2]
[349696051,1737381039436,-500.0,0.00019178,2]
[349696052,1737381039446,-500.0,0.00019178,2]
[349696053,1737381039459,-500.0,0.00019178,2]
[349696054,1737381039469,-500.0,0.00019178,2]
[349696055,1737381039480,-529.33139205,0.00019178,2]
[349696059,1737381040570,-54.63860795,0.00019178,2]
[349696060,1737381040579,-470.78337601,0.00019178,2]
[349696061,1737381040754,-29.21662399,0.00019178,2]
[349696062,1737381040764,-314.26808315,0.00019178,2]
[349696063,1737381040943,-288.84467185,0.00019178,2]
[349696064,1737381040952,-419.26032375,0.00019178,2]
[349696065,1737381040963,-1018.00967625,0.00019178,2]
[349696067,1737381040973,-500.0,0.00019178,2]
[349696068,1737381040982,-1246.61,0.00019178,2]
[349696069,1737381040992,-158.137981,0.00019178,2]
[349696070,1737381041001,-500.0,0.00019178,2]
[349696071,1737381041010,-1096.45,0.00019178,2]
[349696072,1737381041019,-500.0,0.00019178,2]
[349696073,1737381041028,-500.0,0.00019178,2]
[349696074,1737381041037,-579.02,0.00019178,2]
[349696075,1737381041047,-303.66461298,0.00019178,2]
[349696091,1737381043689,-463.01538702,0.00019178,2]
[349696092,1737381043699,-637.05,0.00019178,2]
[349696093,1737381043709,-500.0,0.00019178,2]
[349696094,1737381043717,-500.0,0.00019178,2]
[349696095,1737381043726,-564.39,0.00019178,2]
[349696096,1737381043735,-500.0,0.00019178,2]
[349696097,1737381043744,-528.82192155,0.00019178,2]
[349696101,1737381046447,-865.79,0.00018526,2]
[349696102,1737381046458,-169.11807845,0.00019178,2]
[349696103,1737381046468,-500.0,0.00019178,2]
[349696104,1737381046477,-1841.21,0.00019178,2]
[349696105,1737381046487,-500.0,0.00019178,2]
[349696106,1737381046496,-1651.99,0.00019178,2]
[349696107,1737381046505,-992.79,0.00019178,2]
[349696108,1737381046514,-1838.66,0.00019178,2]
[349696109,1737381046524,-500.0,0.00019178,2]
[349696110,1737381046533,-2007.3,0.00019178,2]
[349696111,1737381046542,-500.0,0.00019178,2]
[349696112,1737381046552,-909.5,0.00019178,2]
[349696113,1737381046560,-1138.98,0.00019178,2]
[349696114,1737381046569,-1713.17,0.00019178,2]
[349696115,1737381046580,-2110.32,0.00019178,2]
[349696116,1737381046589,-1008.65,0.00019178,2]
[349696117,1737381046598,-500.0,0.00019178,2]
[349696118,1737381046607,-987.41,0.00019178,2]
[349696119,1737381046617,-1020.53,0.00019178,2]
[349696120,1737381046626,-1683.92,0.00019178,2]
[349696121,1737381046635,-500.0,0.00019178,2]
[349696122,1737381046644,-901.84,0.00019178,2]
[349696123,1737381046653,-1886.12,0.00019178,2]
[349696124,1737381046662,-500.0,0.00019178,2]
[349696125,1737381046672,-500.0,0.00019178,2]
[349696126,1737381046681,-2739.22,0.00019178,2]
[349696127,1737381046690,-500.0,0.00019178,2]
[349696128,1737381046699,-66985.89996552,0.00019178,2]
[349696129,1737381046708,-1056.18,0.00019188,2]
[349696130,1737381046718,-735.93,0.00019188,2]
[349696131,1737381046727,-1356.65,0.00019188,2]
[349696132,1737381046736,-827.58,0.00019188,2]
[349696133,1737381046745,-500.0,0.00019188,2]
[349696134,1737381046755,-615.56,0.00019188,2]
[349696136,1737381046764,-879.17,0.00019188,2]
[349696138,1737381046773,-500.0,0.00019188,2]
[349696140,1737381046782,-995.42,0.00019188,2]
[349696142,1737381046791,-1263.67,0.00019188,2]
[349696143,1737381046800,-350.18856788,0.00019188,2]
[349696144,1737381046809,-676.72,0.00019188,2]
[349696145,1737381046818,-934.82,0.00019188,2]
[349696146,1737381046827,-500.0,0.00019188,2]
[349696147,1737381046836,-698.76,0.00019188,2]
[349696149,1737381046846,-500.0,0.00019188,2]
[349696151,1737381046854,-688.31,0.00019188,2]
[349696153,1737381046864,-872.65,0.00019188,2]
[349696155,1737381046873,-500.0,0.00019188,2]
[349696156,1737381046882,-2427.13,0.00019188,2]
[349696157,1737381046891,-845.06,0.00019188,2]
[349696158,1737381046900,-512.64,0.00019188,2]
[349696159,1737381046909,-918.71,0.00019188,2]
[349696160,1737381046918,-500.0,0.00019188,2]
[349696161,1737381046927,-3521.03,0.00019188,2]
[349696162,1737381046935,-2026.53,0.00019188,2]
[349696163,1737381046945,-500.0,0.00019188,2]
[349696164,1737381046954,-1210.25,0.00019188,2]
[349696165,1737381046966,-500.0,0.00019188,2]
[349696166,1737381046975,-500.0,0.00019188,2]
[349696167,1737381046983,-742.27,0.00019188,2]
[349696168,1737381046993,-160.879053,0.00019188,2]
[349696169,1737381047002,-500.0,0.00019189,2]
[349696170,1737381047011,-500.0,0.00019189,2]
[349696171,1737381047020,-500.0,0.00019189,2]
[349696172,1737381047030,-500.0,0.00019189,2]
[349696173,1737381047038,-510.22737978,0.00019189,2]
[349696174,1737381047048,-500.0,0.00019189,2]
[349696175,1737381047057,-500.0,0.00019189,2]
[349696176,1737381047067,-500.0,0.00019189,2]
[349696177,1737381047077,-500.0,0.00019189,2]
[349696178,1737381047087,-500.0,0.00019189,2]
[349696179,1737381047097,-500.0,0.00019189,2]
[349696180,1737381047109,-230.27315286,0.00019189,2]
[349696181,1737381047118,-258.36157831,0.00019189,2]
[349696182,1737381047127,-500.0,0.00019189,2]
[349696183,1737381047136,-500.0,0.00019189,2]
[349696184,1737381047146,-500.0,0.00019189,2]
[349696185,1737381047155,-500.0,0.00019189,2]
[349696186,1737381047164,-500.0,0.00019189,2]
[349696187,1737381047172,-500.0,0.00019189,2]
[349696188,1737381047183,-500.0,0.00019189,2]
[349696189,1737381047192,-500.0,0.00019189,2]
[349696190,1737381047201,-500.0,0.00019189,2]
[349696191,1737381047211,-517.55481756,0.00019189,2]
[349696192,1737381047221,-200.0,0.00019189,2]
[349696193,1737381047229,-500.0,0.00019189,2]
[349696194,1737381047238,-500.0,0.00019189,2]
[349696195,1737381047247,-801.34,0.00019189,2]
[349696196,1737381047256,-500.0,0.00019189,2]
[349696197,1737381047265,-1574.21,0.00019189,2]
[349696198,1737381047274,-500.0,0.00019189,2]
[349696199,1737381047282,-500.0,0.00019189,2]
[349696200,1737381047291,-500.0,0.00019189,2]
[349696201,1737381047300,-500.0,0.00019189,2]
[349696202,1737381047309,-500.0,0.00019189,2]
[349696203,1737381047318,-500.0,0.00019189,2]
[349696204,1737381047327,-500.0,0.00019189,2]
[349696205,1737381047335,-2148.9,0.00019189,2]
[349696206,1737381047343,-500.0,0.00019189,2]
[349696207,1737381047352,-500.0,0.00019189,2]
[349696208,1737381047361,-684.14,0.00019189,2]
[349696209,1737381047370,-500.0,0.00019189,2]
[349696210,1737381047379,-500.0,0.00019189,2]
[349696211,1737381047388,-500.0,0.00019189,2]
[349696212,1737381047396,-500.0,0.00019189,2]
[349696213,1737381047405,-500.0,0.00019189,2]
[349696214,1737381047414,-500.0,0.00019189,2]
[349696215,1737381047423,-500.0,0.00019189,2]
[349696216,1737381047433,-1097.36,0.00019189,2]
[349696217,1737381047442,-500.0,0.00019189,2]
[349696218,1737381047451,-500.0,0.00019189,2]
[349696219,1737381047464,-500.0,0.00019189,2]
[349696220,1737381047473,-500.0,0.00019189,2]
[349696221,1737381047482,-500.0,0.00019189,2]
[349696222,1737381047491,-672.55,0.00019189,2]
[349696223,1737381047500,-500.0,0.00019189,2]
[349696224,1737381047509,-500.0,0.00019189,2]
[349696225,1737381047518,-500.0,0.00019189,2]
[349696226,1737381047527,-500.0,0.00019189,2]
[349696227,1737381047536,-500.0,0.00019189,2]
[349696228,1737381047546,-500.0,0.00019189,2]
[349696229,1737381047555,-500.0,0.00019189,2]
[349696230,1737381047564,-503.78184481,0.00019189,2]
[349696231,1737381047573,-500.0,0.00019189,2]
[349696232,1737381047582,-607.67,0.00019189,2]
[349696233,1737381047591,-500.0,0.00019189,2]
[349696234,1737381047600,-500.0,0.00019189,2]
[349696235,1737381047609,-500.0,0.00019189,2]
[349696236,1737381047619,-500.0,0.00019189,2]
[349696237,1737381047628,-500.0,0.00019189,2]
[349696238,1737381047637,-500.0,0.00019189,2]
[349696239,1737381047646,-321.75470465,0.00019189,2]
[349696240,1737381047656,-500.0,0.00019189,2]
[349696241,1737381047665,-500.0,0.00019189,2]
[349696242,1737381047674,-506.55022243,0.00019189,2]
[349696243,1737381047683,-500.0,0.00019189,2]
[349696244,1737381047692,-500.0,0.00019189,2]
[349696245,1737381047702,-500.0,0.00019189,2]
[349696246,1737381047716,-500.0,0.00019189,2]
[349696247,1737381047725,-500.0,0.00019189,2]
[349696248,1737381047734,-500.0,0.00019189,2]
[349696249,1737381047743,-3038.22,0.00019189,2]
[349696250,1737381047753,-500.0,0.00019189,2]
[349696251,1737381047763,-846.52,0.00019189,2]
[349696252,1737381047772,-150.0,0.00019224,2]
[349696253,1737381047782,-257.39629573,0.00019253,2]
[349696254,1737381047791,-500.0,0.00019253,2]
[349696255,1737381047800,-500.0,0.00019253,2]
[349696256,1737381047809,-500.0,0.00019253,2]
[349696257,1737381047819,-290.61956281,0.00019253,2]
[349696258,1737381047831,-510.09970689,0.00019254,2]
[349696259,1737381047840,-506.9121876,0.00019254,2]
[349696260,1737381047849,-500.0,0.00019254,2]
[349696261,1737381047859,-500.0,0.00019254,2]
[349696262,1737381047868,-500.0,0.00019254,2]
[349696263,1737381047877,-500.0,0.00019254,2]
[349696264,1737381047886,-308.20284933,0.00019254,2]
[349696265,1737381047895,-740.78,0.00019254,2]
[349696266,1737381047904,-500.0,0.00019254,2]
[349696267,1737381047913,-1643.64,0.00019254,2]
[349696268,1737381047922,-500.0,0.00019254,2]
[349696269,1737381047931,-500.0,0.00019254,2]
[349696270,1737381047940,-500.0,0.00019254,2]
[349696271,1737381047949,-500.0,0.00019254,2]
[349696272,1737381047961,-500.0,0.00019254,2]
[349696273,1737381047970,-500.0,0.00019254,2]
[349696274,1737381047979,-500.0,0.00019254,2]
[349696275,1737381047989,-500.0,0.00019254,2]
[349696276,1737381047998,-547.87,0.00019254,2]
[349696277,1737381048007,-500.0,0.00019254,2]
[349696278,1737381048017,-500.0,0.00019254,2]
[349696279,1737381048026,-500.0,0.00019254,2]
[349696280,1737381048035,-500.0,0.00019254,2]
[349696281,1737381048044,-500.0,0.00019254,2]
[349696282,1737381048054,-500.0,0.00019254,2]
[349696283,1737381048063,-584.97,0.00019254,2]
[349696284,1737381048073,-500.0,0.00019254,2]
[349696285,1737381048082,-500.0,0.00019254,2]
[349696286,1737381048091,-500.0,0.00019254,2]
[349696287,1737381048105,-500.0,0.00019254,2]
[349696288,1737381048115,-500.0,0.00019254,2]
[349696289,1737381048124,-500.0,0.00019254,2]
[349696290,1737381048133,-500.0,0.00019254,2]
[349696291,1737381048143,-500.0,0.00019254,2]
[349696292,1737381048152,-669.35,0.00019254,2]
[349696293,1737381048162,-500.0,0.00019254,2]
[349696294,1737381048172,-500.0,0.00019254,2]
[349696295,1737381048181,-500.0,0.00019254,2]
[349696296,1737381048190,-500.0,0.00019254,2]
[349696297,1737381048199,-500.0,0.00019254,2]
[349696298,1737381048211,-500.0,0.00019254,2]
[349696299,1737381048220,-500.0,0.00019254,2]
[349696300,1737381048229,-500.0,0.00019254,2]
[349696301,1737381048238,-500.0,0.00019254,2]
[349696302,1737381048248,-500.0,0.00019254,2]
[349696303,1737381048257,-500.0,0.00019254,2]
[349696304,1737381048267,-500.0,0.00019254,2]
[349696305,1737381048276,-500.0,0.00019254,2]
[349696306,1737381048286,-500.0,0.00019254,2]
[349696307,1737381048296,-500.0,0.00019254,2]
[349696308,1737381048306,-500.0,0.00019254,2]
[349696309,1737381048315,-604.17,0.00019254,2]
[349696310,1737381048324,-635.45,0.00019254,2]
[349696311,1737381048334,-500.0,0.00019254,2]
[349696312,1737381048343,-500.0,0.00019254,2]
[349696313,1737381048352,-500.0,0.00019254,2]
[349696314,1737381048361,-500.0,0.00019254,2]
[349696315,1737381048370,-500.0,0.00019254,2]
[349696316,1737381048379,-662.38,0.00019254,2]
[349696317,1737381048389,-815.25,0.00019254,2]
[349696318,1737381048398,-500.0,0.00019254,2]
[349696319,1737381048407,-500.0,0.00019254,2]
[349696320,1737381048417,-500.0,0.00019254,2]
[349696321,1737381048426,-500.0,0.00019254,2]
[349696322,1737381048436,-778.19,0.00019254,2]
[349696323,1737381048445,-500.0,0.00019254,2]
[349696324,1737381048455,-500.0,0.00019254,2]
[349696325,1737381048466,-500.0,0.00019254,2]
[349696326,1737381048476,-500.0,0.00019254,2]
[349696327,1737381048487,-733.35,0.00019254,2]
[349696328,1737381048497,-949.02,0.00019254,2]
[349696329,1737381048506,-799.46,0.00019254,2]
[349696330,1737381048516,-771.03,0.00019254,2]
[349696331,1737381048526,-500.0,0.00019254,2]
[349696332,1737381048535,-500.0,0.00019254,2]
[349696333,1737381048544,-617.64,0.00019254,2]
[349696334,1737381048554,-811.89,0.00019254,2]
[349696335,1737381048763,-562.82,0.00019254,2]
[349696336,1737381048773,-759.02,0.00019254,2]
[349696337,1737381048782,-534.96847742,0.00019254,2]
[349696338,1737381048791,-500.0,0.00019254,2]
[349696339,1737381048801,-500.0,0.00019254,2]
[349696340,1737381048810,-500.0,0.00019254,2]
[349696341,1737381048819,-1117.02,0.00019254,2]
[349696342,1737381048829,-1274.76,0.00019254,2]
[349696343,1737381048839,-1075.9,0.00019254,2]
[349696344,1737381048848,-1312.12,0.00019254,2]
[349696345,1737381048858,-528.70322812,0.00019254,2]
[349696346,1737381048869,-2392.51,0.00019254,2]
[349696347,1737381048879,-500.0,0.00019254,2]
[349696348,1737381048889,-1337.56,0.00019254,2]
[349696349,1737381048898,-500.0,0.00019254,2]
[349696350,1737381048908,-1223.77,0.00019254,2]
[349696351,1737381048917,-500.0,0.00019254,2]
[349696352,1737381048926,-1353.22,0.00019254,2]
[349696353,1737381048935,-500.0,0.00019254,2]
[349696354,1737381048945,-1329.7,0.00019254,2]
[349696355,1737381048954,-678.72,0.00019254,2]
[349696356,1737381048963,-1055.34,0.00019254,2]
[349696357,1737381048972,-535.54,0.00019254,2]
[349696358,1737381048982,-500.0,0.00019254,2]
[349696359,1737381048991,-720.35,0.00019254,2]
[349696360,1737381049001,-500.0,0.00019254,2]
[349696361,1737381049010,-500.0,0.00019254,2]
[349696362,1737381049020,-500.0,0.00019254,2]
[349696363,1737381049029,-500.0,0.00019254,2]
[349696364,1737381049038,-1034.16,0.00019254,2]
[349696365,1737381049047,-500.0,0.00019254,2]
[349696366,1737381049056,-580.67,0.00019254,2]
[349696367,1737381049065,-718.84,0.00019254,2]
[349696368,1737381049074,-500.0,0.00019254,2]
[349696369,1737381049084,-500.0,0.00019254,2]
[349696370,1737381049093,-500.0,0.00019254,2]
[349696371,1737381049103,-500.0,0.00019254,2]
[349696372,1737381049116,-500.0,0.00019254,2]
[349696373,1737381049126,-554.58,0.00019254,2]
[349696374,1737381049135,-500.0,0.00019254,2]
[349696375,1737381049146,-500.0,0.00019254,2]
[349696376,1737381049156,-862.11,0.00019254,2]
[349696377,1737381049167,-500.0,0.00019254,2]
[349696378,1737381049176,-500.0,0.00019254,2]
[349696379,1737381049188,-500.0,0.00019254,2]
[349696380,1737381049198,-698.89,0.00019254,2]
[349696381,1737381049207,-500.0,0.00019254,2]
[349696382,1737381049217,-1319.28,0.00019254,2]
[349696383,1737381049229,-500.0,0.00019254,2]
[349696384,1737381049238,-643.65,0.00019254,2]
[349696385,1737381049247,-500.0,0.00019254,2]
[349696386,1737381049257,-500.0,0.00019254,2]
[349696387,1737381049267,-925.51,0.00019254,2]
[349696388,1737381049277,-500.0,0.00019254,2]
[349696389,1737381049287,-500.0,0.00019254,2]
[349696390,1737381049296,-500.0,0.00019254,2]
[349696391,1737381049306,-742.12,0.00019254,2]
[349696392,1737381049315,-500.0,0.00019254,2]
[349696393,1737381049325,-753.92,0.00019254,2]
[349696394,1737381049334,-500.0,0.00019254,2]
[349696395,1737381049344,-4330.11,0.00019254,2]
[349696396,1737381049353,-500.0,0.00019254,2]
[349696397,1737381049363,-501.15725567,0.00019254,2]
[349696398,1737381049373,-781.82,0.00019254,2]
[349696399,1737381049382,-500.0,0.00019254,2]
[349696400,1737381049391,-500.0,0.00019254,2]
[349696401,1737381049400,-500.0,0.00019255,2]
[349696402,1737381049410,-251.27519143,0.00019255,2]
[349696403,1737381049420,-504.67565356,0.00019255,2]
[349696404,1737381049430,-502.88233961,0.00019255,2]
[349696405,1737381049441,-266.26629051,0.00019255,2]
[349696406,1737381049451,-500.0,0.00019255,2]
[349696407,1737381049464,-230.99120606,0.00019255,2]
[349696408,1737381049479,-505.60453528,0.00019255,2]
[349696409,1737381049489,-500.0,0.00019255,2]
[349696410,1737381049499,-500.0,0.00019255,2]
[349696411,1737381049510,-500.0,0.00019255,2]
[349696412,1737381049519,-500.0,0.00019255,2]
[349696413,1737381049528,-500.0,0.00019255,2]
[349696414,1737381049537,-501.64243051,0.00019255,2]
[349696415,1737381049547,-301.14753056,0.00019255,2]
[349696416,1737381049557,-502.14893857,0.00019255,2]
[349696417,1737381049567,-500.0,0.00019255,2]
[349696418,1737381049578,-500.0,0.00019255,2]
[349696419,1737381049588,-500.0,0.00019255,2]
[349696420,1737381049597,-500.0,0.00019255,2]
[349696421,1737381049607,-500.0,0.00019255,2]
[349696422,1737381049617,-362.39799688,0.00019255,2]
[349696423,1737381049627,-500.0,0.00019255,2]
[349696424,1737381049636,-500.0,0.00019255,2]
[349696425,1737381049645,-500.0,0.00019255,2]
[349696426,1737381049654,-500.0,0.00019255,2]
[349696427,1737381049663,-501.58656571,0.00019255,2]
[349696428,1737381049673,-500.0,0.00019255,2]
[349696429,1737381049683,-500.0,0.00019255,2]
[349696430,1737381049692,-500.0,0.00019255,2]
[349696431,1737381049702,-500.0,0.00019255,2]
[349696432,1737381049712,-351.211748,0.00019255,2]
[349696433,1737381049721,-500.0,0.00019255,2]
[349696434,1737381049731,-563.53888645,0.00019255,2]
[349696435,1737381049743,-500.0,0.00019255,2]
[349696436,1737381049753,-500.0,0.00019255,2]
[349696437,1737381049763,-500.0,0.00019255,2]
[349696438,1737381049772,-501.34515397,0.00019255,2]
[349696439,1737381049782,-500.0,0.00019255,2]
[349696440,1737381049791,-500.0,0.00019255,2]
[349696441,1737381049801,-500.0,0.00019255,2]
[349696442,1737381049810,-500.0,0.0001926,2]
[349696443,1737381049819,-150.0,0.00019296,2]
[349696444,1737381049828,-3791.91,0.00019339,2]
[349696445,1737381049837,-5470.95,0.00019339,2]
[349696446,1737381049847,-150.99,0.00019339,2]
[349696447,1737381049856,-382.88,0.00019339,2]
[349696448,1737381049866,-150.0,0.00019346,2]
[349696449,1737381049875,-175.91959068,0.00019391,2]
[349696450,1737381049885,-1007.45152055,0.00019392,2]
[349696451,1737381049894,-150.0,0.00019425,2]
[349696452,1737381049904,-753.95,0.00019451,2]
[349696453,1737381049914,-2231.13,0.00019451,2]
[349696454,1737381049923,-500.0,0.00019451,2]
[349696455,1737381049933,-767.17,0.00019451,2]
[349696456,1737381049943,-1016.27,0.00019451,2]
[349696457,1737381049952,-1992.69,0.00019451,2]
[349696458,1737381049964,-500.0,0.00019451,2]
[349696459,1737381049974,-1000.0,0.00019451,2]
[349696460,1737381049984,-1941.95,0.00019451,2]
[349696461,1737381049993,-891.14,0.00019451,2]
[349696462,1737381050003,-2469.18,0.00019451,2]
[349696463,1737381050014,-2530.09,0.00019451,2]
[349696464,1737381050024,-508.64,0.00019452,2]
[349696465,1737381050034,-500.0,0.00019452,2]
[349696466,1737381050043,-500.0,0.00019452,2]
[349696467,1737381050052,-500.0,0.00019452,2]
[349696468,1737381050061,-500.0,0.00019452,2]
[349696469,1737381050070,-500.0,0.00019452,2]
[349696470,1737381050079,-500.0,0.00019452,2]
[349696471,1737381050089,-500.0,0.00019452,2]
[349696472,1737381050100,-227.78,0.00019452,2]
[349696473,1737381050111,-575.98035373,0.00019452,2]
[349696474,1737381050120,-500.0,0.00019452,2]
[349696475,1737381050129,-500.0,0.00019452,2]
[349696476,1737381050140,-500.0,0.00019452,2]
[349696477,1737381050149,-504.84,0.00019452,2]
[349696478,1737381050158,-354.01753412,0.00019452,2]
[349696479,1737381050168,-245.43092016,0.00019452,2]
[349696480,1737381050177,-528.46728934,0.00019452,2]
[349696481,1737381050187,-634.87956698,0.00019452,2]
[349696482,1737381050196,-500.0,0.00019452,2]
[349696483,1737381050206,-500.0,0.00019452,2]
[349696484,1737381050217,-500.0,0.00019452,2]
[349696485,1737381050226,-500.0,0.00019452,2]
[349696486,1737381050236,-547.09,0.00019452,2]
[349696487,1737381050245,-520.90004808,0.00019452,2]
[349696488,1737381050254,-502.17,0.00019452,2]
[349696489,1737381050264,-664.84,0.00019452,2]
[349696490,1737381050273,-500.0,0.00019452,2]
[349696491,1737381050283,-500.0,0.00019452,2]
[349696492,1737381050292,-500.0,0.00019452,2]
[349696493,1737381050301,-500.0,0.00019452,2]
[349696494,1737381050310,-500.0,0.00019452,2]
[349696495,1737381050319,-500.0,0.00019452,2]
[349696496,1737381050328,-500.0,0.00019452,2]
[349696497,1737381050337,-500.0,0.00019452,2]
[349696498,1737381050346,-718.85,0.00019452,2]
[349696499,1737381050356,-500.0,0.00019452,2]
[349696500,1737381050365,-161.20220306,0.00019452,2]
[349696501,1737381050374,-500.0,0.00019452,2]
[349696502,1737381050383,-500.0,0.00019452,2]
[349696503,1737381050393,-500.0,0.00019452,2]
[349696504,1737381050402,-684.16,0.00019452,2]
[349696505,1737381050412,-500.0,0.00019452,2]
[349696506,1737381050426,-500.0,0.00019452,2]
[349696507,1737381050436,-500.0,0.00019452,2]
[349696508,1737381050446,-500.0,0.00019452,2]
[349696509,1737381050455,-342.95,0.00019452,2]
[349696510,1737381050465,-300.97386254,0.00019452,2]
[349696511,1737381050475,-500.0,0.00019452,2]
[349696512,1737381050484,-500.0,0.00019452,2]
[349696513,1737381050493,-500.0,0.00019452,2]
[349696514,1737381050503,-500.0,0.00019452,2]
[349696515,1737381050512,-514.28,0.00019452,2]
[349696516,1737381050521,-514.8,0.00019452,2]
[349696517,1737381050531,-500.0,0.00019452,2]
[349696518,1737381050541,-506.22,0.00019452,2]
[349696519,1737381050550,-500.0,0.00019452,2]
[349696520,1737381050559,-500.0,0.00019452,2]
[349696521,1737381050569,-500.0,0.00019452,2]
[349696522,1737381050579,-512.7,0.00019452,2]
[349696523,1737381050588,-500.0,0.00019452,2]
[349696524,1737381050597,-500.0,0.00019452,2]
[349696525,1737381050607,-500.0,0.00019452,2]
[349696526,1737381050617,-500.0,0.00019452,2]
[349696527,1737381050626,-545.89,0.00019452,2]
[349696528,1737381050635,-500.0,0.00019452,2]
[349696529,1737381050645,-500.0,0.00019452,2]
[349696530,1737381050655,-818.97,0.00019452,2]
[349696531,1737381050664,-500.0,0.00019452,2]
[349696532,1737381050674,-500.0,0.00019452,2]
[349696533,1737381050683,-517.25692796,0.00019452,2]
[349696534,1737381050693,-500.0,0.00019452,2]
[349696535,1737381050702,-500.0,0.00019452,2]
[349696536,1737381050711,-500.0,0.00019452,2]
[349696537,1737381050721,-500.0,0.00019452,2]
[349696538,1737381050731,-500.0,0.00019452,2]
[349696539,1737381050740,-583.97,0.00019452,2]
[349696540,1737381050750,-410.72939146,0.00019452,2]
[349696541,1737381050760,-603.112755,0.00019452,2]
[349696542,1737381050770,-1437.27,0.00019452,2]
[349696543,1737381050780,-500.0,0.00019452,2]
[349696544,1737381050790,-1246.61,0.00019452,2]
[349696545,1737381050799,-500.0,0.00019452,2]
[349696546,1737381050809,-1096.45,0.00019452,2]
[349696547,1737381050819,-579.02,0.00019452,2]
[349696548,1737381050829,-766.68,0.00019452,2]
[349696549,1737381050838,-637.05,0.00019452,2]
[349696550,1737381050848,-500.0,0.00019452,2]
[349696551,1737381050857,-500.0,0.00019452,2]
[349696552,1737381050867,-564.39,0.00019452,2]
[349696553,1737381050876,-500.0,0.00019452,2]
[349696554,1737381050886,-697.94,0.00019452,2]
[349696555,1737381050895,-500.0,0.00019452,2]
[349696556,1737381050905,-1841.21,0.00019452,2]
[349696557,1737381050914,-500.0,0.00019452,2]
[349696558,1737381050924,-1651.99,0.00019452,2]
[349696559,1737381050933,-992.79,0.00019452,2]
[349696560,1737381050942,-1838.66,0.00019452,2]
[349696561,1737381050953,-2007.3,0.00019452,2]
[349696562,1737381050964,-500.0,0.00019452,2]
[349696563,1737381050973,-500.0,0.00019452,2]
[349696564,1737381050983,-909.5,0.00019452,2]
[349696565,1737381050993,-1138.98,0.00019452,2]
[349696566,1737381051002,-1713.17,0.00019452,2]
[349696567,1737381051012,-2110.32,0.00019452,2]
[349696568,1737381051021,-1008.65,0.00019452,2]